fUST/lending_fUST_20250727
["ID","MTS","AMOUNT","RATE_DAILY","PERIOD"]
[375243974,1753597839965,-1126.28,0.00019178,2]
[375243975,1753597839974,-460.0,0.00019178,2]
[375243976,1753597839984,-545.23,0.00019178,2]
[375243977,1753597839993,-461.34213772,0.00019178,2]
[375243978,1753597840003,-460.0,0.00019178,2]
[375243979,1753597840012,-460.0,0.00019178,2]
[375243980,1753597840022,-553.59,0.00019178,2]
[375243981,1753597840032,-460.0,0.00019178,2]
[375243982,1753597840041,-460.0,0.00019178,2]
[375243984,1753597840051,-460.0,0.00019178,2]
[375243986,1753597840060,-460.0,0.00019178,2]
[375243988,1753597840069,-460.0,0.00019178,2]
[375243990,1753597840078,-503.22,0.00019178,2]
[375243991,1753597840087,-460.0,0.00019178,2]
[375243992,1753597840096,-1416.99,0.00019178,2]
[375243993,1753597840105,-460.0,0.00019178,2]
[375243994,1753597840114,-460.0,0.00019178,2]
[375243995,1753597840124,-500.62,0.00019178,2]
[375243996,1753597840133,-460.0,0.00019178,2]
[375243997,1753597840142,-460.0,0.00019178,2]
[375243998,1753597840152,-460.0,0.00019178,2]
[375243999,1753597840161,-460.0,0.00019178,2]
[375244000,1753597840171,-460.0,0.00019178,2]
[375244001,1753597840180,-460.0,0.00019178,2]
[375244002,1753597840190,-460.0,0.00019178,2]
[375244003,1753597840199,-460.0,0.00019178,2]
[375244004,1753597840208,-460.0,0.00019178,2]
[375244005,1753597840217,-548.68,0.00019178,2]
[375244006,1753597840226,-460.0,0.00019178,2]
[375244007,1753597840235,-473.29424281,0.00019178,2]
[375244008,1753597840245,-621.75,0.00019178,2]
[375244009,1753597840256,-325.85312486,0.00019178,2]
[375244010,1753597840388,-464.42,0.00019178,2]
[375244011,1753597840397,-460.0,0.00019178,2]
[375244012,1753597840407,-460.0,0.00019178,2]
[375244013,1753597840417,-460.0,0.00019178,2]
[375244014,1753597840427,-460.0,0.00019178,2]
[375244015,1753597840437,-460.0,0.00019178,2]
[375244016,1753597840447,-460.0,0.00019178,2]
[375244017,1753597840457,-480.76,0.00019178,2]
[375244018,1753597840467,-460.0,0.00019178,2]
[375244019,1753597840477,-460.0,0.00019178,2]
[375244020,1753597840486,-460.0,0.00019178,2]
[375244021,1753597840496,-460.0,0.00019178,2]
[375244022,1753597840506,-1687.5,0.00019178,2]
[375244023,1753597840515,-460.0,0.00019178,2]
[375244024,1753597840525,-460.0,0.00019178,2]
[375244025,1753597840534,-735.33,0.00019178,2]
[375244026,1753597840544,-466.56456626,0.00019178,2]
[375244027,1753597840554,-1590.02,0.00019178,2]
[375244028,1753597840563,-460.0,0.00019178,2]
[375244029,1753597840573,-460.0,0.00019178,2]
[375244030,1753597840583,-2082.57,0.00019178,2]
[375244031,1753597840593,-460.0,0.00019178,2]
[375244032,1753597840603,-460.0,0.00019178,2]
[375244034,1753597840613,-460.0,0.00019178,2]
[375244035,1753597840622,-460.0,0.00019178,2]
[375244036,1753597840632,-460.0,0.00019178,2]
[375244037,1753597840641,-3396.15088535,0.00019383,2]
[375244038,1753597840651,-151.0,0.000194,2]
[375244039,1753597840661,-500.0,0.0001941,2]
[375244041,1753597840671,-460.0,0.00019451,2]
[375244042,1753597840680,-1287.42,0.00019451,2]
[375244043,1753597840690,-460.0,0.00019451,2]
[375244044,1753597840700,-1607.5,0.00019451,2]
[375244045,1753597840710,-460.0,0.00019451,2]
[375244046,1753597840719,-477.12,0.00019451,2]
[375244047,1753597840729,-460.0,0.00019451,2]
[375244048,1753597840739,-551.09,0.00019451,2]
[375244065,1753597840956,-460.0,0.00019451,2]
[375244068,1753597840966,-198.0,0.00019452,2]
[375244070,1753597840976,-151.0,0.00019452,2]
[375244072,1753597840987,-460.0,0.00019452,2]
[375244074,1753597840996,-460.0,0.00019452,2]
[375244076,1753597841006,-460.0,0.00019452,2]
[375244078,1753597841016,-1153.57,0.00019452,2]
[375244079,1753597841026,-460.0,0.00019452,2]
[375244081,1753597841036,-460.0,0.00019452,2]
[375244083,1753597841045,-460.0,0.00019452,2]
[375244085,1753597841055,-460.0,0.00019452,2]
[375244087,1753597841064,-460.0,0.00019452,2]
[375244089,1753597841074,-460.0,0.00019452,2]
[375244091,1753597841084,-460.0,0.00019452,2]
[375244093,1753597841094,-460.0,0.00019452,2]
[375244095,1753597841103,-460.0,0.00019452,2]
[375244097,1753597841113,-460.0,0.00019452,2]
[375244099,1753597841122,-460.0,0.00019452,2]
[375244101,1753597841132,-596.92,0.00019452,2]
[375244103,1753597841142,-460.0,0.00019452,2]
[375244105,1753597841151,-460.0,0.00019452,2]
[375244108,1753597841161,-460.0,0.00019452,2]
[375244109,1753597841171,-460.0,0.00019452,2]
[375244111,1753597841180,-505.49423003,0.00019452,2]
[375244113,1753597841189,-460.0,0.00019452,2]
[375244115,1753597841200,-460.0,0.00019452,2]
[375244117,1753597841210,-460.0,0.00019452,2]
[375244120,1753597841219,-460.0,0.00019452,2]
[375244121,1753597841229,-460.0,0.00019452,2]
[375244124,1753597841239,-218.71255318,0.00019452,2]
[375244126,1753597841249,-460.0,0.00019452,2]
[375244128,1753597841258,-460.0,0.00019452,2]
[375244129,1753597841268,-460.0,0.00019452,2]
[375244131,1753597841278,-460.0,0.00019452,2]
[375244133,1753597841288,-460.0,0.00019452,2]
[375244135,1753597841298,-516.9,0.00019452,2]
[375244137,1753597841307,-460.0,0.00019452,2]
[375244140,1753597841318,-460.0,0.00019452,2]
[375244142,1753597841327,-460.0,0.00019452,2]
[375244143,1753597841336,-460.0,0.00019452,2]
[375244145,1753597841346,-460.0,0.00019452,2]
[375244147,1753597841356,-460.0,0.00019452,2]
[375244149,1753597841366,-460.0,0.00019452,2]
[375244151,1753597841376,-460.0,0.00019452,2]
[375244153,1753597841386,-460.0,0.00019452,2]
[375244155,1753597841396,-3300.37,0.00019452,2]
[375244157,1753597841406,-570.14,0.00019452,2]
[375244159,1753597841416,-460.0,0.00019452,2]
[375244161,1753597841426,-689.99,0.00019452,2]
[375244163,1753597841436,-460.0,0.00019452,2]
[375244166,1753597841450,-460.0,0.00019452,2]
[375244168,1753597841460,-151.0,0.00019452,2]
[375244170,1753597841474,-500.0,0.00019452,2]
[375244172,1753597841484,-284.8584332,0.00019452,2]
[375244174,1753597841493,-151.0,0.00019452,2]
[375244176,1753597841503,-151.0,0.00019452,2]
[375244178,1753597841513,-151.0,0.00019452,2]
[375244180,1753597841523,-500.0,0.00019452,2]
[375244182,1753597841533,-460.0,0.00019452,2]
[375244184,1753597841546,-151.0,0.00019452,2]
[375244186,1753597841556,-151.0,0.00019452,2]
[375244188,1753597841566,-151.0,0.00019452,2]
[375244190,1753597841575,-151.0,0.00019452,2]
[375244192,1753597841586,-3492.2,0.00019452,2]
[375244194,1753597841596,-3346.69,0.00019452,2]
[375244196,1753597841605,-460.0,0.00019452,2]
[375244197,1753597841615,-460.0,0.00019452,2]
[375244200,1753597841625,-460.0,0.00019452,2]
[375244201,1753597841635,-460.0,0.00019452,2]
[375244203,1753597841645,-1394.17,0.00019452,2]
[375244204,1753597841655,-460.0,0.00019452,2]
[375244205,1753597841664,-460.0,0.00019452,2]
[375244206,1753597841674,-460.0,0.00019452,2]
[375244207,1753597841683,-460.0,0.00019452,2]
[375244209,1753597841695,-460.0,0.00019452,2]
[375244210,1753597841705,-460.0,0.00019452,2]
[375244211,1753597841715,-460.0,0.00019452,2]
[375244212,1753597841724,-460.0,0.00019452,2]
[375244213,1753597841734,-666.87,0.00019452,2]
[375244214,1753597841744,-500.0,0.00019452,2]
[375244215,1753597841755,-1797.73,0.00019452,2]
[375244216,1753597841765,-460.0,0.00019452,2]
[375244218,1753597841775,-460.0,0.00019452,2]
[375244219,1753597841784,-276.90944129,0.00019452,2]
[375244220,1753597841794,-240.92602532,0.00019452,2]
[375244221,1753597841803,-151.0,0.00019452,2]
[375244222,1753597841812,-460.0,0.00019452,2]
[375244223,1753597841822,-647.09,0.00019452,2]
[375244224,1753597841831,-460.0,0.00019452,2]
[375244225,1753597841840,-151.0,0.00019452,2]
[375244226,1753597841849,-460.0,0.00019452,2]
[375244227,1753597841859,-500.0,0.00019452,2]
[375244228,1753597841868,-317.07667341,0.00019452,2]
[375244229,1753597841878,-460.0,0.00019452,2]
[375244230,1753597841888,-460.0,0.00019452,2]
[375244231,1753597841897,-460.0,0.00019452,2]
[375244232,1753597841907,-460.0,0.00019452,2]
[375244233,1753597841916,-504.22,0.00019452,2]
[375244234,1753597841925,-460.0,0.00019452,2]
[375244235,1753597841935,-1521.04,0.00019452,2]
[375244236,1753597841947,-460.0,0.00019452,2]
[375244237,1753597841957,-636.2,0.00019452,2]
[375244238,1753597841966,-460.0,0.00019452,2]
[375244239,1753597841976,-460.0,0.00019452,2]
[375244240,1753597841986,-1183.8,0.00019452,2]
[375244241,1753597841995,-460.0,0.00019452,2]
[375244242,1753597842005,-460.0,0.00019452,2]
[375244243,1753597842014,-1126.28,0.00019452,2]
[375244244,1753597842024,-460.0,0.00019452,2]
[375244245,1753597842033,-152.6791758,0.00019452,2]
[375244246,1753597842042,-151.0,0.00019452,2]
[375244247,1753597842052,-545.23,0.00019452,2]
[375244248,1753597842062,-151.0,0.00019452,2]
[375244249,1753597842071,-460.0,0.00019452,2]
[375244250,1753597842081,-151.0,0.00019452,2]
[375244251,1753597842090,-460.0,0.00019452,2]
[375244252,1753597842100,-152.35542293,0.00019452,2]
[375244253,1753597842109,-151.0,0.00019452,2]
[375244254,1753597842119,-553.59,0.00019452,2]
[375244255,1753597842128,-460.0,0.00019452,2]
[375244256,1753597842138,-460.0,0.00019452,2]
[375244257,1753597842147,-460.0,0.00019452,2]
[375244258,1753597842156,-460.0,0.00019452,2]
[375244259,1753597842166,-503.22,0.00019452,2]
[375244260,1753597842177,-460.0,0.00019452,2]
[375244261,1753597842187,-1416.99,0.00019452,2]
[375244262,1753597842196,-460.0,0.00019452,2]
[375244263,1753597842206,-460.0,0.00019452,2]
[375244264,1753597842215,-500.62,0.00019452,2]
[375244265,1753597842224,-460.0,0.00019452,2]
[375244266,1753597842234,-460.0,0.00019452,2]
[375244267,1753597842244,-460.0,0.00019452,2]
[375244268,1753597842254,-460.0,0.00019452,2]
[375244269,1753597842264,-460.0,0.00019452,2]
[375244270,1753597842274,-460.0,0.00019452,2]
[375244271,1753597842284,-460.0,0.00019452,2]
[375244272,1753597842293,-460.0,0.00019452,2]
[375244273,1753597842303,-548.68,0.00019452,2]
[375244274,1753597842312,-460.0,0.00019452,2]
[375244275,1753597842322,-621.75,0.00019452,2]
[375244276,1753597842331,-464.42,0.00019452,2]
[375244277,1753597842341,-460.0,0.00019452,2]
[375244278,1753597842350,-460.0,0.00019452,2]
[375244279,1753597842359,-460.0,0.00019452,2]
[375244280,1753597842369,-460.0,0.00019452,2]
[375244281,1753597842378,-460.0,0.00019452,2]
[375244282,1753597842387,-460.0,0.00019452,2]
[375244283,1753597842398,-480.76,0.00019452,2]
[375244284,1753597842407,-460.0,0.00019452,2]
[375244285,1753597842417,-460.0,0.00019452,2]
[375244286,1753597842426,-465.69419903,0.00019452,2]
[375244287,1753597842436,-460.0,0.00019452,2]
[375244288,1753597842445,-151.0,0.00019452,2]
[375244289,1753597842455,-1687.5,0.00019452,2]
[375244290,1753597842465,-151.0,0.00019452,2]
[375244291,1753597842475,-460.0,0.00019452,2]
[375244292,1753597842484,-412.65097454,0.00019452,2]
[375244293,1753597842494,-151.0,0.00019452,2]
[375244294,1753597842503,-735.33,0.00019452,2]
[375244295,1753597842513,-151.0,0.00019452,2]
[375244296,1753597842523,-1590.02,0.00019452,2]
[375244297,1753597842534,-151.28003748,0.00019452,2]
[375244298,1753597842543,-151.56985288,0.00019452,2]
[375244299,1753597842553,-460.0,0.00019452,2]
[375244300,1753597842563,-443.22857386,0.00019452,2]
[375244301,1753597842574,-2082.57,0.00019452,2]
[375244302,1753597842583,-460.0,0.00019452,2]
[375244303,1753597842593,-460.0,0.00019452,2]
[375244304,1753597842603,-460.0,0.00019452,2]
[375244305,1753597842612,-460.0,0.00019452,2]
[375244306,1753597842623,-226.73870925,0.00019473,2]
[375244307,1753597842633,-500.0,0.00019473,2]
[375244308,1753597842643,-500.0,0.00019473,2]
[375244309,1753597842652,-500.0,0.00019473,2]
[375244310,1753597842662,-501.46549128,0.00019473,2]
[375244311,1753597842672,-500.0,0.00019473,2]
[375244312,1753597842682,-500.0,0.00019473,2]
[375244313,1753597842691,-500.0,0.00019473,2]
[375244314,1753597842701,-500.0,0.0001952,2]
[375244315,1753597842710,-3396.15088535,0.00019624,2]
[375244316,1753597842720,-420.0,0.00019639,2]
[375244317,1753597842729,-312.33595681,0.00019671,2]
[375244318,1753597842739,-1076.0,0.00019707,2]
[375244319,1753597842749,-352.42,0.00019714,2]
[375244320,1753597842762,-460.0,0.00019725,2]
[375244321,1753597842771,-1287.42,0.00019725,2]
[375244322,1753597842781,-460.0,0.00019725,2]
[375244323,1753597842790,-1607.5,0.00019725,2]
[375244324,1753597842799,-460.0,0.00019725,2]
[375244325,1753597842808,-477.12,0.00019725,2]
[375244326,1753597842818,-460.0,0.00019725,2]
[375244327,1753597842827,-551.09,0.00019725,2]
[375244328,1753597842836,-460.0,0.00019725,2]
[375244329,1753597842846,-151.0,0.00019726,2]
[375244330,1753597842857,-151.0,0.00019726,2]
[375244331,1753597842866,-500.0,0.00019726,2]
[375244332,1753597842876,-151.0,0.00019726,2]
[375244333,1753597842886,-151.0,0.00019726,2]
[375244334,1753597842895,-202.64692334,0.00019726,2]
[375244335,1753597842905,-500.0,0.00019726,2]
[375244336,1753597842915,-151.0,0.00019726,2]
[375244337,1753597842924,-151.0,0.00019726,2]
[375244338,1753597842934,-500.0,0.00019726,2]
[375244340,1753597842943,-151.0,0.00019726,2]
[375244341,1753597842952,-151.0,0.00019726,2]
[375244343,1753597842962,-500.0,0.00019726,2]
[375244345,1753597842972,-237.62447229,0.00019726,2]
[375244346,1753597842982,-151.0,0.00019726,2]
[375244347,1753597842992,-151.0,0.00019726,2]
[375244348,1753597843001,-151.0,0.00019726,2]
[375244349,1753597843012,-249.59601864,0.00019726,2]
[375244350,1753597843022,-201.7199678,0.00019726,2]
[375244351,1753597843031,-151.0,0.00019726,2]
[375244354,1753597843045,-460.0,0.00019726,2]
[375244355,1753597843055,-1153.57,0.00019726,2]
[375244356,1753597843064,-460.0,0.00019726,2]
[375244357,1753597843074,-289.11157121,0.00019726,2]
[375244358,1753597843084,-460.0,0.00019726,2]
[375244359,1753597843095,-460.0,0.00019726,2]
[375244360,1753597843104,-460.0,0.00019726,2]
[375244361,1753597843114,-283.92,0.00019726,2]
[375244362,1753597843125,-460.0,0.00019726,2]
[375244363,1753597843135,-460.0,0.00019726,2]
[375244364,1753597843146,-460.0,0.00019726,2]
[375244365,1753597843155,-460.0,0.00019726,2]
[375244366,1753597843165,-596.92,0.00019726,2]
[375244367,1753597843174,-244.04,0.00019726,2]
[375244368,1753597843185,-460.0,0.00019726,2]
[375244369,1753597843194,-460.0,0.00019726,2]
[375244370,1753597843204,-460.0,0.00019726,2]
[375244371,1753597843214,-196.0970772,0.00019726,2]
[375244372,1753597843224,-460.0,0.00019726,2]
[375244373,1753597843235,-460.0,0.00019726,2]
[375244375,1753597843245,-460.0,0.00019726,2]
[375244377,1753597843257,-460.0,0.00019726,2]
[375244379,1753597843267,-460.0,0.00019726,2]
[375244380,1753597843276,-460.0,0.00019726,2]
[375244381,1753597843286,-460.0,0.00019726,2]
[375244382,1753597843298,-464.72418399,0.00019726,2]
[375244383,1753597843308,-516.9,0.00019726,2]
[375244384,1753597843318,-460.0,0.00019726,2]
[375244385,1753597843327,-460.0,0.00019726,2]
[375244386,1753597843337,-460.0,0.00019726,2]
[375244387,1753597843347,-460.0,0.00019726,2]
[375244388,1753597843357,-460.0,0.00019726,2]
[375244389,1753597843366,-460.0,0.00019726,2]
[375244390,1753597843376,-460.0,0.00019726,2]
[375244391,1753597843386,-460.0,0.00019726,2]
[375244392,1753597843396,-3300.37,0.00019726,2]
[375244393,1753597843405,-570.14,0.00019726,2]
[375244394,1753597843415,-460.0,0.00019726,2]
[375244396,1753597843425,-689.99,0.00019726,2]
[375244397,1753597843434,-605.21,0.00019726,2]
[375244398,1753597843445,-460.0,0.00019726,2]
[375244399,1753597843455,-460.0,0.00019726,2]
[375244401,1753597843465,-3492.2,0.00019726,2]
[375244403,1753597843475,-3346.69,0.00019726,2]
[375244405,1753597843485,-460.0,0.00019726,2]
[375244406,1753597843494,-460.0,0.00019726,2]
[375244407,1753597843503,-460.0,0.00019726,2]
[375244408,1753597843513,-397.3929076,0.00019726,2]
[375244409,1753597843522,-1394.17,0.00019726,2]
[375244410,1753597843532,-460.0,0.00019726,2]
[375244411,1753597843542,-460.0,0.00019726,2]
[375244412,1753597843552,-588.34185795,0.00019726,2]
[375244414,1753597843677,-460.0,0.00019726,2]
[375244415,1753597843687,-460.0,0.00019726,2]
[375244416,1753597843698,-460.0,0.00019726,2]
[375244417,1753597843708,-460.0,0.00019726,2]
[375244418,1753597843717,-666.87,0.00019726,2]
[375244419,1753597843726,-1797.73,0.00019726,2]
[375244420,1753597843736,-460.0,0.00019726,2]
[375244421,1753597843745,-460.0,0.00019726,2]
[375244422,1753597843757,-460.0,0.00019726,2]
[375244423,1753597843767,-647.09,0.00019726,2]
[375244424,1753597843777,-460.0,0.00019726,2]
[375244425,1753597843787,-460.0,0.00019726,2]
[375244426,1753597843796,-460.0,0.00019726,2]
[375244427,1753597843806,-460.0,0.00019726,2]
[375244428,1753597843816,-504.22,0.00019726,2]
[375244429,1753597843825,-460.0,0.00019726,2]
[375244430,1753597843836,-1521.04,0.00019726,2]
[375244431,1753597843846,-460.0,0.00019726,2]
[375244432,1753597843856,-460.0,0.00019726,2]
[375244433,1753597843865,-460.0,0.00019726,2]
[375244434,1753597843876,-1183.8,0.00019726,2]
[375244435,1753597843886,-460.0,0.00019726,2]
[375244436,1753597843895,-460.0,0.00019726,2]
[375244437,1753597843905,-1126.28,0.00019726,2]
[375244438,1753597843914,-460.0,0.00019726,2]
[375244439,1753597843924,-545.23,0.00019726,2]
[375244440,1753597843934,-460.0,0.00019726,2]
[375244441,1753597843944,-460.0,0.00019726,2]
[375244442,1753597843953,-553.59,0.00019726,2]
[375244443,1753597843963,-460.0,0.00019726,2]
[375244444,1753597843973,-460.0,0.00019726,2]
[375244445,1753597843983,-460.0,0.00019726,2]
[375244446,1753597843992,-465.15033572,0.00019726,2]
[375244448,1753597844002,-503.22,0.00019726,2]
[375244449,1753597844011,-460.0,0.00019726,2]
[375244450,1753597844021,-1416.99,0.00019726,2]
[375244451,1753597844031,-460.0,0.00019726,2]
[375244452,1753597844040,-460.0,0.00019726,2]
[375244453,1753597844050,-500.62,0.00019726,2]
[375244454,1753597844059,-460.0,0.00019726,2]
[375244455,1753597844069,-460.0,0.00019726,2]
[375244456,1753597844079,-460.0,0.00019726,2]
[375244457,1753597844088,-460.0,0.00019726,2]
[375244458,1753597844098,-460.0,0.00019726,2]
[375244459,1753597844107,-460.0,0.00019726,2]
[375244460,1753597844117,-460.0,0.00019726,2]
[375244461,1753597844126,-467.62948119,0.00019726,2]
[375244462,1753597844135,-548.68,0.00019726,2]
[375244463,1753597844145,-584.65265206,0.00019726,2]
[375244464,1753597844156,-621.75,0.00019726,2]
[375244465,1753597844165,-464.42,0.00019726,2]
[375244466,1753597844175,-460.0,0.00019726,2]
[375244467,1753597844185,-460.0,0.00019726,2]
[375244468,1753597844194,-460.0,0.00019726,2]
[375244469,1753597844205,-460.0,0.00019726,2]
[375244470,1753597844215,-460.0,0.00019726,2]
[375244471,1753597844224,-480.76,0.00019726,2]
[375244472,1753597844233,-460.0,0.00019726,2]
[375244473,1753597844243,-460.0,0.00019726,2]
[375244474,1753597844253,-464.10826767,0.00019726,2]
[375244475,1753597844262,-1687.5,0.00019726,2]
[375244476,1753597844271,-460.0,0.00019726,2]
[375244477,1753597844281,-735.33,0.00019726,2]
[375244478,1753597844290,-1590.02,0.00019726,2]
[375244479,1753597844300,-2082.57,0.00019726,2]
[375244480,1753597844309,-405.38960391,0.00019726,2]
[375244481,1753597844319,-568.48641063,0.00019726,2]
[375244482,1753597844328,-460.0,0.00019726,2]
[375244483,1753597844337,-460.0,0.00019726,2]
[375244484,1753597844347,-151.0,0.000198,2]
[375244485,1753597844356,-150.0,0.00019853,2]
[375244486,1753597844366,-3396.15088535,0.00019866,2]
[375244487,1753597844375,-160.0,0.00019892,2]
[375244488,1753597844385,-460.0,0.00019999,2]
[375244489,1753597844394,-1287.42,0.00019999,2]
[375244490,1753597844404,-467.63122922,0.00019999,2]
[375244491,1753597844413,-1607.5,0.00019999,2]
[375244492,1753597844423,-460.0,0.00019999,2]
[375244493,1753597844432,-477.12,0.00019999,2]
[375244494,1753597844442,-460.0,0.00019999,2]
[375244495,1753597844452,-551.09,0.00019999,2]
[375244496,1753597844462,-460.0,0.00019999,2]
[375244497,1753597844471,-222.06223931,0.0002,2]
[375244498,1753597844482,-151.0,0.0002,2]
[375244499,1753597844491,-500.0,0.0002,2]
[375244500,1753597844501,-151.0,0.0002,2]
[375244501,1753597844510,-199.46803043,0.0002,2]
[375244502,1753597844519,-190.64785306,0.0002,2]
[375244503,1753597844529,-151.0,0.0002,2]
[375244504,1753597844538,-203.0039419,0.0002,2]
[375244505,1753597844547,-500.0,0.0002,2]
[375244506,1753597844557,-151.0,0.0002,2]
[375244507,1753597844567,-151.0,0.0002,2]
[375244508,1753597844576,-500.0,0.0002,2]
[375244509,1753597844586,-198.0,0.0002,2]
[375244510,1753597844595,-151.0,0.0002,2]
[375244511,1753597844605,-151.0,0.0002,2]
[375244512,1753597844615,-460.0,0.0002,2]
[375244513,1753597844624,-1153.57,0.0002,2]
[375244514,1753597844634,-460.0,0.0002,2]
[375244515,1753597844643,-460.0,0.0002,2]
[375244516,1753597844653,-460.0,0.0002,2]
[375244517,1753597844663,-460.0,0.0002,2]
[375244518,1753597844672,-460.0,0.0002,2]
[375244519,1753597844682,-460.0,0.0002,2]
[375244520,1753597844691,-460.0,0.0002,2]
[375244521,1753597844702,-460.0,0.0002,2]
[375244522,1753597844711,-596.92,0.0002,2]
[375244523,1753597844721,-460.0,0.0002,2]
[375244524,1753597844732,-460.0,0.0002,2]
[375244525,1753597844742,-460.0,0.0002,2]
[375244526,1753597844751,-460.0,0.0002,2]
[375244527,1753597844764,-460.0,0.0002,2]
[375244528,1753597844774,-460.0,0.0002,2]
[375244529,1753597844783,-460.0,0.0002,2]
[375244530,1753597844792,-460.0,0.0002,2]
[375244531,1753597844802,-460.0,0.0002,2]
[375244532,1753597844811,-460.0,0.0002,2]
[375244533,1753597844821,-516.9,0.0002,2]
[375244534,1753597844832,-460.0,0.0002,2]
[375244535,1753597844841,-460.0,0.0002,2]
[375244536,1753597844851,-460.0,0.0002,2]
[375244537,1753597844860,-460.0,0.0002,2]
[375244538,1753597844870,-460.0,0.0002,2]
[375244539,1753597844879,-460.0,0.0002,2]
[375244540,1753597844888,-460.0,0.0002,2]
[375244541,1753597844898,-3300.37,0.0002,2]
[375244542,1753597844908,-570.14,0.0002,2]
[375244543,1753597844918,-460.0,0.0002,2]
[375244544,1753597844927,-689.99,0.0002,2]
[375244545,1753597844936,-460.0,0.0002,2]
[375244546,1753597844947,-460.0,0.0002,2]
[375244547,1753597844956,-3492.2,0.0002,2]
[375244548,1753597844965,-3346.69,0.0002,2]
[375244549,1753597844975,-460.0,0.0002,2]
[375244550,1753597844984,-460.0,0.0002,2]
[375244551,1753597844993,-1394.17,0.0002,2]
[375244552,1753597845003,-460.0,0.0002,2]
[375244553,1753597845012,-460.0,0.0002,2]
[375244554,1753597845021,-460.0,0.0002,2]
[375244555,1753597845030,-460.0,0.0002,2]
[375244556,1753597845039,-460.0,0.0002,2]
[375244557,1753597845048,-666.87,0.0002,2]
[375244558,1753597845058,-1797.73,0.0002,2]
[375244559,1753597845067,-460.0,0.0002,2]
[375244560,1753597845076,-460.0,0.0002,2]
[375244561,1753597845085,-381.64297915,0.0002,2]
[375244562,1753597845095,-647.09,0.0002,2]
[375244563,1753597845104,-460.0,0.0002,2]
[375244564,1753597845113,-460.0,0.0002,2]
[375244565,1753597845122,-466.95373641,0.0002,2]
[375244566,1753597845131,-460.0,0.0002,2]
[375244567,1753597845141,-504.22,0.0002,2]
[375244568,1753597845150,-460.0,0.0002,2]
[375244569,1753597845159,-1521.04,0.0002,2]
[375244570,1753597845169,-460.0,0.0002,2]
[375244571,1753597845178,-460.0,0.0002,2]
[375244572,1753597845188,-460.0,0.0002,2]
[375244573,1753597845199,-1183.8,0.0002,2]
[375244574,1753597845208,-460.0,0.0002,2]
[375244575,1753597845218,-1126.28,0.0002,2]
[375244576,1753597845227,-460.0,0.0002,2]
[375244577,1753597845236,-545.23,0.0002,2]
[375244578,1753597845245,-12908.80070338,0.0002,2]
[375244579,1753597845255,-460.0,0.0002,2]
[375244580,1753597845264,-460.0,0.0002,2]